lending/lending_fUSD_20240510
["ID","MTS","AMOUNT","RATE_DAILY","PERIOD"]
[326757150,1715317848752,-508.40666352,0.00027397,4]
[326757151,1715317848761,-512.71725132,0.00027397,4]
[326757152,1715317848771,-998.49,0.00027397,4]
[326757153,1715317848782,-500.0,0.00027397,4]
[326757154,1715317848791,-533.85,0.00027397,4]
[326757155,1715317848800,-555.28554146,0.00027397,4]
[326757156,1715317848809,-978.39,0.00027397,4]
[326757157,1715317848822,-500.0,0.00027397,4]
[326757158,1715317848832,-500.0,0.00027397,4]
[326757159,1715317848842,-500.0,0.00027397,4]
[326757160,1715317848853,-512.10231654,0.00027397,4]
[326757161,1715317848864,-1069.73,0.00027397,4]
[326757162,1715317848876,-504.85290234,0.00027397,4]
[326757163,1715317848885,-500.0,0.00027397,4]
[326757164,1715317848894,-500.0,0.00027397,4]
[326757165,1715317848903,-857.72,0.00027397,4]
[326757166,1715317848912,-304.21900567,0.00027397,4]
[326757167,1715317848922,-505.49161361,0.00027397,4]
[326757168,1715317848931,-908.35,0.00027397,4]
[326757169,1715317848940,-514.04140848,0.00027397,4]
[326757170,1715317848950,-500.0,0.00027397,4]
[326757171,1715317848959,-500.0,0.00027397,4]
[326757172,1715317848969,-500.0,0.00027397,4]
[326757173,1715317848980,-506.90624838,0.00027397,4]
[326757174,1715317848989,-500.0,0.00027397,4]
[326757175,1715317848998,-500.0,0.00027397,4]
[326757176,1715317849007,-512.10810567,0.00027397,4]
[326757177,1715317849017,-151.689742,0.00027397,7]
[326757178,1715317849026,-1202.19,0.00027397,4]
[326757179,1715317849036,-500.0,0.00027397,4]
[326757180,1715317849047,-1671.17,0.00027397,4]
[326757181,1715317849056,-508.4001366,0.00027397,4]
[326757182,1715317849065,-994.51,0.00027397,4]
[326757183,1715317849074,-747.48,0.00027397,4]
[326757184,1715317849083,-500.0,0.00027397,4]
[326757185,1715317849092,-1070.51,0.00027397,4]
[326757186,1715317849102,-1722.09,0.00027397,4]
[326757187,1715317849111,-500.0,0.00027397,4]
[326757188,1715317849120,-500.0,0.00027397,4]
[326757189,1715317849129,-500.0,0.00027397,4]
[326757190,1715317849138,-1347.61,0.00027397,4]
[326757191,1715317849148,-928.97,0.00027397,4]
[326757192,1715317849157,-500.0,0.00027397,4]
[326757193,1715317849166,-721.83,0.00027397,4]
[326757194,1715317849176,-500.0,0.00027397,4]
[326757195,1715317849185,-500.0,0.00027397,4]
[326757196,1715317849194,-829.75,0.00027397,4]
[326757197,1715317849204,-1269.04,0.00027397,4]
[326757198,1715317849213,-5000.0,0.00027397,4]
[326757199,1715317849223,-649.18,0.00027397,4]
[326757200,1715317849233,-850.19,0.00027397,4]
[326757201,1715317849243,-2100.36,0.00027397,4]
[326757202,1715317849252,-664.23,0.00027397,4]
[326757203,1715317849262,-950.17,0.00027397,4]
[326757204,1715317849271,-151.0,0.00027397,7]
[326757205,1715317849281,-500.0,0.00027397,4]
[326757206,1715317849291,-972.99,0.00027397,4]
[326757207,1715317849301,-500.0,0.00027397,4]
[326757208,1715317849310,-500.0,0.00027397,4]
[326757209,1715317849320,-500.0,0.00027397,4]
[326757210,1715317849329,-1741.19,0.00027397,4]
[326757211,1715317849338,-500.0,0.00027397,4]
[326757212,1715317849348,-908.63,0.00027397,4]
[326757213,1715317849357,-441.97833541,0.00027397,4]
[326757214,1715317849367,-981.01,0.00027397,4]
[326757215,1715317849376,-559.17,0.00027397,4]
[326757216,1715317849390,-500.0,0.00027397,4]
[326757217,1715317849400,-500.0,0.00027397,4]
[326757218,1715317849410,-788.84,0.00027397,4]
[326757219,1715317849419,-549.99,0.00027397,4]
[326757220,1715317849429,-670.64,0.00027397,4]
[326757221,1715317849438,-1852.37,0.00027397,4]
[326757222,1715317849448,-1253.47,0.00027397,4]
[326757223,1715317849458,-500.0,0.00027397,4]
[326757224,1715317849467,-500.0,0.00027397,4]
[326757225,1715317849477,-500.0,0.00027397,4]
[326757226,1715317849487,-1933.67,0.00027397,4]
[326757227,1715317849496,-1850.67,0.00027397,4]
[326757228,1715317849506,-7041.15593925,0.00027397,2]
[326757229,1715317849515,-1151.82,0.00027397,4]
[326757230,1715317849524,-500.0,0.00027397,4]
[326757231,1715317849534,-1017.08,0.00027397,4]
[326757232,1715317849543,-1589.26,0.00027397,4]
[326757233,1715317849552,-500.0,0.00027397,4]
[326757234,1715317849563,-618.71,0.00027397,4]
[326757235,1715317849573,-500.0,0.00027397,4]
[326757236,1715317849582,-500.0,0.00027397,4]
[326757237,1715317849592,-500.0,0.00027397,4]
[326757238,1715317849601,-1351.77,0.00027397,4]
[326757239,1715317849611,-500.0,0.00027397,4]
[326757240,1715317849620,-1272.9,0.00027397,4]
[326757241,1715317849629,-1015.26,0.00027397,4]
[326757242,1715317849639,-500.0,0.00027397,4]
[326757243,1715317849649,-625.13,0.00027397,4]
[326757244,1715317849658,-500.0,0.00027397,4]
[326757245,1715317849667,-510.36,0.00027397,4]
[326757246,1715317849676,-572.97,0.00027397,4]
[326757247,1715317849686,-2287.93,0.00027397,4]
[326757248,1715317849695,-530.0857007,0.00027397,4]
[326757249,1715317849705,-500.0,0.00027397,4]
[326757250,1715317849714,-689.64,0.00027397,4]
[326757251,1715317849723,-662.3,0.00027397,4]
[326757252,1715317849733,-2552.69,0.00027397,4]
[326757253,1715317849742,-366.92240735,0.00027397,4]
[326757254,1715317849751,-500.0,0.00027397,4]
[326757255,1715317849761,-565.47735862,0.00027397,4]
[326757256,1715317849770,-744.12,0.00027397,4]
[326757257,1715317849780,-500.0,0.00027397,4]
[326757258,1715317849789,-1581.26,0.00027397,4]
[326757259,1715317849799,-500.0,0.00027397,4]
[326757260,1715317849808,-500.0,0.00027397,4]
[326757261,1715317849818,-623.51,0.00027397,4]
[326757262,1715317849827,-645.03,0.00027397,4]
[326757263,1715317849837,-500.0,0.00027397,4]
[326757264,1715317849847,-512.3014796,0.00027397,4]
[326757265,1715317849857,-891.21,0.00027397,4]
[326757266,1715317849866,-665.12,0.00027397,4]
[326757267,1715317849875,-603.92,0.00027397,4]
[326757268,1715317849885,-1025.02,0.00027397,4]
[326757269,1715317849895,-533.01323452,0.00027397,4]
[326757270,1715317849905,-1560.14,0.00027397,4]
[326757271,1715317849915,-507.79207079,0.00027397,4]
[326757272,1715317849924,-625.3,0.00027397,4]
[326757273,1715317849933,-506.69190776,0.00027397,4]
[326757274,1715317849942,-500.0,0.00027397,4]
[326757275,1715317849953,-658.83,0.00027397,4]
[326757276,1715317849962,-581.9,0.00027397,4]
[326757277,1715317849971,-534.98,0.00027397,4]
[326757278,1715317849984,-500.0,0.00027397,4]
[326757279,1715317849993,-509.04735955,0.00027397,4]
[326757280,1715317850003,-1504.41,0.00027397,4]
[326757281,1715317850013,-500.0,0.00027397,4]
[326757282,1715317850022,-500.0,0.00027397,4]
[326757283,1715317850031,-500.0,0.00027397,4]
[326757284,1715317850041,-546.02,0.00027397,4]
[326757285,1715317850050,-554.66,0.00027397,4]
[326757286,1715317850060,-500.0,0.00027397,4]
[326757287,1715317850070,-500.0,0.00027397,4]
[326757288,1715317850079,-500.0,0.00027397,4]
[326757289,1715317850088,-500.0,0.00027397,4]
[326757290,1715317850098,-500.0,0.00027397,4]
[326757291,1715317850108,-500.0,0.00027397,4]
[326757292,1715317850117,-500.0,0.00027397,4]
[326757293,1715317850127,-500.0,0.00027397,4]
[326757294,1715317850136,-2621.21,0.00027397,4]
[326757295,1715317850145,-502.75,0.00027397,4]
[326757296,1715317850154,-500.0,0.00027397,4]
[326757297,1715317850164,-503.93576785,0.00027397,4]
[326757298,1715317850173,-500.0,0.00027397,4]
[326757299,1715317850183,-2332.98,0.00027397,4]
[326757300,1715317850192,-500.0,0.00027397,4]
[326757301,1715317850202,-2491.59,0.00027397,4]
[326757302,1715317850211,-500.0,0.00027397,4]
[326757303,1715317850220,-500.0,0.00027397,4]
[326757304,1715317850231,-500.0,0.00027397,4]
[326757305,1715317850239,-1416.82,0.00027397,4]
[326757306,1715317850249,-1019.47,0.00027397,4]
[326757307,1715317850258,-509.01204297,0.00027397,4]
[326757308,1715317850267,-500.0,0.00027397,4]
[326757309,1715317850277,-1046.16,0.00027397,4]
[326757310,1715317850287,-500.0,0.00027397,4]
[326757311,1715317850298,-500.0,0.00027397,4]
[326757312,1715317850307,-500.0,0.00027397,4]
[326757313,1715317850321,-1817.82,0.00027397,4]
[326757314,1715317850330,-500.0,0.00027397,4]
[326757315,1715317850339,-500.0,0.00027397,4]
[326757316,1715317850349,-509.49021915,0.00027397,4]
[326757317,1715317850358,-605.19,0.00027397,4]
[326757318,1715317850368,-1039.69,0.00027397,4]
[326757319,1715317850378,-952.23,0.00027397,4]
[326757320,1715317850391,-500.0,0.00027397,4]
[326757321,1715317850401,-1516.87,0.00027397,4]
[326757322,1715317850410,-500.0,0.00027397,4]
[326757323,1715317850419,-500.0,0.00027397,4]
[326757324,1715317850430,-150.0,0.00027397,4]
[326757325,1715317850440,-794.74,0.00027397,4]
[326757326,1715317850449,-500.0,0.00027397,4]
[326757327,1715317850459,-500.0,0.00027397,4]
[326757328,1715317850469,-876.66,0.00027397,4]
[326757329,1715317850479,-500.0,0.00027397,4]
[326757330,1715317850489,-500.0,0.00027397,4]
[326757331,1715317850498,-946.69,0.00027397,4]
[326757332,1715317850507,-500.0,0.00027397,4]
[326757333,1715317850517,-500.0,0.00027397,4]
[326757334,1715317850526,-849.37,0.00027397,4]
[326757335,1715317850536,-1054.38,0.00027397,4]
[326757336,1715317850545,-1203.09,0.00027397,4]
[326757337,1715317850557,-500.0,0.00027397,4]
[326757338,1715317850567,-981.11,0.00027397,4]
[326757339,1715317850576,-508.83682076,0.00027397,4]
[326757340,1715317850587,-500.0,0.00027397,4]
[326757341,1715317850596,-465.54874693,0.00027397,4]
[326757342,1715317851098,-34.45125307,0.00027397,4]
[326757343,1715317851107,-500.0,0.00027397,4]
[326757344,1715317851117,-508.19229765,0.00027397,4]
[326757345,1715317851127,-1027.72,0.00027397,4]
[326757346,1715317851136,-602.7,0.00027397,4]
[326757347,1715317851146,-500.0,0.00027397,4]
[326757348,1715317851155,-500.0,0.00027397,4]
[326757349,1715317851164,-605.28,0.00027397,4]
[326757350,1715317851173,-500.0,0.00027397,4]
[326757351,1715317851182,-500.0,0.00027397,4]
[326757352,1715317851191,-612.62,0.00027397,4]
[326757353,1715317851200,-500.0,0.00027397,4]
[326757354,1715317851210,-637.57,0.00027397,4]
[326757355,1715317851220,-514.19771864,0.00027397,4]
[326757356,1715317851229,-503.51091962,0.00027397,4]
[326757357,1715317851238,-288.35999729,0.00027397,4]
[326757358,1715317851337,-227.02576839,0.00027397,4]
[326757359,1715317851346,-739.21284614,0.00027397,4]
[326757360,1715317851802,-515.22715386,0.00027397,4]
[326757361,1715317851811,-753.06,0.00027397,4]
[326757362,1715317851820,-733.97,0.00027397,4]
[326757363,1715317851829,-501.6715466,0.00027397,4]
[326757364,1715317851838,-500.0,0.00027397,4]
[326757365,1715317851848,-500.0,0.00027397,4]
[326757366,1715317851857,-1098.8,0.00027397,4]
[326757367,1715317851865,-523.82,0.00027397,4]
[326757368,1715317851874,-500.0,0.00027397,4]
[326757369,1715317851883,-500.0,0.00027397,4]
[326757370,1715317851892,-552.06,0.00027397,4]
[326757371,1715317851901,-566.83237759,0.00027397,4]
[326757372,1715317851910,-500.0,0.00027397,4]
[326757373,1715317851919,-1049.59,0.00027397,4]
[326757374,1715317851928,-756.07,0.00027397,4]
[326757375,1715317851937,-1375.36,0.00027397,4]
[326757376,1715317851946,-500.0,0.00027397,4]
[326757377,1715317851955,-506.32666014,0.00027397,4]
[326757378,1715317851964,-500.0,0.00027397,4]
[326757379,1715317851973,-806.62,0.00027397,4]
[326757380,1715317851983,-875.95,0.00027397,4]
[326757381,1715317851992,-500.0,0.00027397,4]
[326757382,1715317852001,-500.0,0.00027397,4]
[326757383,1715317852010,-500.0,0.00027397,4]
[326757384,1715317852019,-1085.52,0.00027397,4]
[326757385,1715317852028,-505.61,0.00027397,4]
[326757386,1715317852037,-500.0,0.00027397,4]
[326757387,1715317852046,-557.18,0.00027397,4]
[326757388,1715317852055,-151.0,0.00027397,7]
[326757389,1715317852064,-500.0,0.00027397,4]
[326757390,1715317852073,-500.0,0.00027397,4]
[326757391,1715317852082,-500.0,0.00027397,4]
[326757392,1715317852091,-508.1127535,0.00027397,4]
[326757393,1715317852101,-500.0,0.00027397,4]
[326757394,1715317852110,-509.59662619,0.00027397,4]
[326757395,1715317852119,-1092.13,0.00027397,4]
[326757396,1715317852129,-1154.86,0.00027397,4]
[326757397,1715317852138,-502.67665207,0.00027397,4]
[326757398,1715317852147,-504.94677791,0.00027397,4]
[326757399,1715317852156,-2674.31,0.00027397,4]
[326757400,1715317852165,-509.87413439,0.00027397,4]
[326757401,1715317852174,-534.95,0.00027397,4]
[326757402,1715317852183,-500.0,0.00027397,4]
[326757403,1715317852193,-500.0,0.00027397,4]
[326757404,1715317852202,-1203.48,0.00027397,4]
[326757405,1715317852210,-85.73598091,0.00027397,4]
[326757406,1715317852228,-414.26401909,0.00027397,4]
[326757407,1715317852239,-802.83,0.00027397,4]
[326757408,1715317852248,-536.7,0.00027397,4]
[326757409,1715317852257,-500.0,0.00027397,4]
[326757410,1715317852266,-1520.63,0.00027397,4]
[326757411,1715317852276,-500.0,0.00027397,4]
[326757412,1715317852284,-500.0,0.00027397,4]
[326757413,1715317852293,-510.7377788,0.00027397,4]
[326757414,1715317852302,-170.41893991,0.00027397,4]
[326757415,1715317852311,-500.0,0.00027397,4]
[326757416,1715317852320,-576.95,0.00027397,4]
[326757417,1715317852329,-889.55,0.00027397,4]
[326757418,1715317852338,-500.0,0.00027397,4]
[326757419,1715317852347,-509.54851659,0.00027397,4]
[326757420,1715317852356,-1144.74,0.00027397,4]
[326757421,1715317852365,-81.5790456,0.00027397,4]
[326757423,1715318877572,-155.0,0.00012699,2]
[326757424,1715318877596,-1981.5858548,0.000127,2]
[326757425,1715318877619,-5294.9492,0.000128,2]
[326757426,1715318877641,-346.5333,0.000128,2]
[326757427,1715318877668,-468.9609,0.000128,2]
[326757428,1715318877692,-393.71,0.0001289,2]
[326757429,1715318877717,-11448.67725188,0.00012898,2]
[326757430,1715318877740,-155.0,0.00012898,2]
[326757431,1715318877763,-8356.39019707,0.00012898,2]
[326757432,1715318877787,-800.00991154,0.00012899,2]
[326757433,1715318877809,-846.8924,0.000129,2]
[326757434,1715318877833,-245000.0,0.000129,2]
[326757435,1715318877856,-15865.7866737,0.00014,2]
[326757436,1715318877879,-155.25395767,0.00014,2]
[326757437,1715318877902,-4214.385869,0.00015,2]
[326757438,1715318877926,-156.14286056,0.00015,2]
[326757439,1715318877948,-168.62239492,0.00015,2]
[326757440,1715318877974,-282.22154129,0.00015,2]
[326757441,1715318877997,-200.0,0.00015,2]
[326757442,1715318878021,-618.44971002,0.00015,2]
[326757443,1715318878045,-192.18055483,0.00015,2]
[326757444,1715318878068,-1667.0,0.000158,2]
[326757445,1715318878091,-3391.86,0.000158,2]
[326757446,1715318878114,-22912.47,0.000158,2]
[326757447,1715318878138,-1226.23788858,0.000165,2]
[326757448,1715318878161,-499.99,0.00016712,2]
[326757449,1715318878185,-224.99,0.00016712,2]
[326757450,1715318878207,-182.59,0.00016712,2]
[326757451,1715318878229,-531.5230264,0.0001788,2]
[326757452,1715318878251,-531.52302631,0.0001788,2]
[326757453,1715318878273,-531.52302631,0.0001788,2]
[326757454,1715318878295,-156.53,0.00019178,2]
[326757455,1715318878316,-156.62,0.00019178,2]
[326757456,1715318878339,-531.52302631,0.0001935,2]
[326757457,1715318878362,-1260.0,0.00019875,2]
[326757458,1715318878384,-1789.0,0.00019875,2]
[326757459,1715318878405,-1476.0,0.00019875,2]
[326757460,1715318878430,-974.764,0.00019875,2]
[326757461,1715318878451,-5909.0,0.00019875,2]
[326757462,1715318878472,-5747.0,0.00019875,2]
[326757463,1715318878495,-290.356,0.00019875,2]
[326757464,1715318878518,-2295.0,0.00019875,2]
[326757465,1715318878540,-1059.893,0.00019875,2]
[326757466,1715318878563,-1547.62107427,0.00020274,2]
[326757467,1715318878587,-531.52302631,0.00021167,2]
[326757468,1715318878610,-158.57818288,0.00021278,2]
[326757469,1715318878631,-547.66237829,0.00021918,2]
[326757470,1715318878654,-1284.94835775,0.00021976,2]
[326757471,1715318878677,-499.87,0.00021977,2]
[326757472,1715318878698,-500.0,0.00021985,2]
[326757473,1715318878718,-250.0,0.00021992,2]
[326757474,1715318878737,-2751.0,0.00022085,2]
[326757475,1715318878756,-250.0,0.0002209,2]
[326757476,1715318878778,-170.01,0.00022153,2]
[326757477,1715318878801,-154.01522209,0.00022222,2]
[326757478,1715318878823,-218.4,0.00022289,2]
[326757479,1715318878844,-10000.0,0.00022297,2]
[326757480,1715318878868,-155.44582399,0.00022367,2]
[326757481,1715318878890,-200.0,0.00022394,2]
[326757482,1715318878915,-23900.0,0.00022396,2]
[326757483,1715318878948,-333.83,0.00022445,2]
[326757484,1715318878970,-160.63,0.00022658,2]
[326757485,1715318878993,-155.45142788,0.00022697,2]
[326757486,1715318879016,-158.91,0.00022802,2]
[326757487,1715318879041,-272.0,0.00022813,2]
[326757488,1715318879064,-288.0,0.00022875,2]
[326757489,1715318879086,-2295.0,0.00022875,2]
[326757490,1715318879109,-1059.0,0.00022875,2]
[326757491,1715318879132,-168.52810596,0.00022896,2]
[326757492,1715318879154,-158.91,0.00022901,2]
[326757493,1715318879181,-531.52302631,0.00022984,2]
[326757494,1715318879203,-158.91,0.00023,2]
[326757495,1715318879226,-1284.94835775,0.00023049,2]
[326757496,1715318879250,-158.91,0.00023099,2]
[326757497,1715318879272,-158.91,0.00023198,2]
[326757498,1715318879297,-155.44582399,0.00023245,2]
[326757499,1715318879319,-158.91,0.00023297,2]
[326757500,1715318879342,-167.0,0.00023327,2]
[326757501,1715318879364,-158.91,0.00023396,2]
[326757502,1715318879387,-158.91,0.00023495,2]
[326757503,1715318879408,-154.81693474,0.00023496,2]
[326757504,1715318879431,-300.0,0.00023556,2]
[326757505,1715318879456,-158.91,0.00023594,2]
[326757506,1715318879478,-158.91,0.00023693,2]
[326757507,1715318879499,-158.91,0.00023792,2]
[326757508,1715318879521,-158.91,0.00023891,2]
[326757509,1715318879544,-158.91,0.0002399,2]
[326757510,1715318879567,-167.0,0.00024097,2]
[326757511,1715318879589,-1284.94835775,0.00024123,2]
[326757512,1715318879612,-158.47804645,0.00024142,2]
[326757513,1715318879633,-424.10472006,0.00024657,2]
[326757514,1715318879654,-154.01522209,0.00024693,2]
[326757515,1715318879678,-499.87,0.00024717,2]
[326757516,1715318879703,-158.47804645,0.00024753,2]
[326757517,1715318879728,-155.44582399,0.00024781,2]
[326757518,1715318879750,-155.874027,0.000248,4]
[326757519,1715318879774,-531.52302631,0.00024801,2]
[326757520,1715318879796,-187.0,0.00024812,2]
[326757521,1715318879817,-167.0,0.00024867,2]
[326757522,1715318879839,-2260.36347638,0.000249,2]
[326757523,1715318879862,-300.0,0.00024926,2]
[326757524,1715318879885,-1777.09589962,0.00025,2]
[326757525,1715318879908,-800.0,0.00025014,2]
[326757526,1715318879933,-1284.94835775,0.00025196,2]
[326757527,1715318879958,-333.83,0.00025251,120]
[326757528,1715318879981,-160.82256004,0.00025276,2]
[326757529,1715318880003,-150.0,0.000253,4]
[326757530,1715318880026,-167.0,0.00025637,2]
[326757531,1715318880050,-158.47804645,0.00025664,2]
[326757532,1715318880073,-272.0,0.00025664,2]
[326757533,1715318880096,-155.44582399,0.00025715,2]
[326757534,1715318880118,-150.0,0.000258,4]
[326757535,1715318880142,-170.01,0.00025845,2]
[326757536,1715318880167,-155.44582399,0.00025863,2]
[326757537,1715318880192,-288.0,0.00025875,2]
[326757538,1715318880218,-404.17,0.0002593,2]
[326757539,1715318880243,-154.81693474,0.00026019,2]
[326757540,1715318880273,-154.01522209,0.00026035,2]
[326757541,1715318880314,-158.57818288,0.00026161,2]
[326757542,1715318880340,-155.44582399,0.00026237,2]
[326757543,1715318880365,-1284.94835775,0.00026269,2]
[326757544,1715318880390,-150.0,0.000263,5]
[326757545,1715318880415,-167.0,0.00026407,2]
[326757546,1715318880438,-150.0,0.00026407,2]
[326757547,1715318880463,-155.44582399,0.00026533,2]
[326757548,1715318880488,-531.52302631,0.00026617,2]
[326757549,1715318880511,-167.18647926,0.000268,2]
[326757550,1715318880533,-194.48369158,0.000268,2]
[326757551,1715318880558,-180.39041152,0.000268,2]
[326757552,1715318880582,-150.0,0.000268,5]
[326757553,1715318880607,-165.76896419,0.000268,2]
[326757554,1715318880631,-1044.91946639,0.00026849,2]
[326757555,1715318880653,-1017.79390375,0.00026849,2]
[326757556,1715318880675,-180.00460453,0.0002689,2]
[326757557,1715318880699,-393.71,0.0002689,2]
[326757558,1715318880721,-393.71,0.0002689,2]
[326757559,1715318880744,-393.71,0.0002689,2]
[326757560,1715318880767,-393.71,0.0002689,2]
[326757561,1715318880790,-173.74336358,0.0002689,2]
[326757562,1715318880813,-361547.52517173,0.000269,6]
[326757582,1715319032441,-630.10225962,0.000128,2]
[326757583,1715319032512,-609.67999998,0.000128,2]
[326757584,1715319032600,-1260.2177404,0.000128,2]
[326757585,1715319032610,-527.0,0.000158,2]
[326757586,1715319032620,-155.0,0.00017259,2]
[326757587,1715319032630,-336.8,0.00026065,2]
[326757588,1715319032639,-871.58625293,0.00026246,2]
[326757589,1715319032652,-1492.99751267,0.00026246,2]
[326757590,1715319032686,-1849.8021034,0.00026246,2]
[326757591,1715319032696,-1777.09589962,0.00026247,2]
[326757592,1715319032706,-78.28652698,0.00026248,2]
[326757593,1715319032718,-3185.94146673,0.00026248,2]
[326757594,1715319032730,-792.5901174,0.00026248,2]
[326757595,1715319032765,-19843.18188889,0.00026248,2]
[326757596,1715319032775,-6076.8204,0.000268,2]
[326757597,1715319032785,-356.04318423,0.000268,2]
[326757598,1715319032797,-499.99,0.00026813,2]
[326757599,1715319032806,-196.85,0.0002689,2]
[326757600,1715319032815,-196.85,0.0002689,2]
[326757601,1715319032824,-300.0,0.00026897,2]
[326757602,1715319032834,-234.34665549,0.00026898,2]
[326757603,1715319032843,-620.25420684,0.00026898,2]
[326757604,1715319032853,-282.92094438,0.00026898,2]
[326757605,1715319032862,-200.0,0.00026898,2]
[326757606,1715319032872,-490.47240182,0.00026899,2]
[326757607,1715319032882,-273629.56233487,0.000269,6]
[326757608,1715319032894,-522.3297664,0.000269,6]
[326757620,1715319038449,-2603.10643675,0.000269,6]
[326757621,1715319038616,-580.4,0.000269,6]
[326757622,1715319038682,-154.4,0.00019178,2]
[326757623,1715319038692,-3971.36288333,0.000269,6]
[326757624,1715319038704,-166318.48793372,0.000269,6]
[326757625,1715319038714,-361.83291831,0.000269,2]
[326757626,1715319038724,-155.44582399,0.00026913,2]
[326757627,1715319038734,-196.85,0.0002699,2]
[326757628,1715319038900,-196.85,0.0002699,2]
[326757629,1715319038970,-196.85,0.0002699,2]
[326757630,1715319038984,-196.85,0.0002699,2]
[326757631,1715319038995,-196.85,0.0002699,2]
[326757632,1715319039005,-196.85,0.0002699,2]
[326757633,1715319039015,-196.85,0.0002699,2]
[326757634,1715319039025,-196.85,0.0002699,2]
[326757635,1715319039035,-180.00460453,0.0002699,2]
[326757636,1715319039045,-165.76896419,0.00026996,2]
[326757637,1715319039055,-528.0,0.00027,2]
[326757638,1715319039066,-710191.81848481,0.00027,2]
[326757639,1715319039553,-168653.81181801,0.00027,2]
[326757644,1715319042975,-1797.56721644,0.00020274,2]
[326757645,1715319042986,-151.86372182,0.000268,2]
[326757646,1715319042995,-887.8930886,0.00027,2]
[326757650,1715319043233,-11892.52491399,0.00027,2]
[326757658,1715319043596,-298.72,0.00027,2]
[326757659,1715319043903,-1620.87313189,0.00027,2]
[326757660,1715319043915,-1912.01650934,0.00027,2]
[326757661,1715319046476,-774.68725396,0.00027,2]
[326757662,1715319046683,-993.06454,0.00027,2]
[326757663,1715319046696,-8405.57520312,0.00027,2]
[326757665,1715319047851,-0.21931708,0.00027,2]
[326757666,1715319047866,-22493.45170001,0.00027,2]
[326757719,1715320231676,-155.0,0.00011889,2]
[326757720,1715320231686,-295.0,0.00011889,2]
[326757721,1715320231698,-347.75426477,0.00011889,2]
[326757722,1715320231707,-122.07351523,0.00011889,2]
[326757723,1715320231911,-43.39533276,0.00011889,2]
[326757724,1715320231921,-157.56566802,0.0001189,2]
[326757725,1715320231931,-168.99848184,0.00011891,2]
[326757726,1715320231942,-397.75824469,0.00011891,2]
[326757727,1715320231952,-69.74175531,0.00011989,2]
[326757728,1715320232007,-85.25824469,0.00011989,2]
[326757729,1715320232017,-155.0,0.0001199,2]
[326757730,1715320232027,-262.78286527,0.00011991,2]
[326757731,1715320232037,-96.95889004,0.00011991,2]
[326757732,1715320232048,-140.26914246,0.00011991,2]
[326757733,1715320232058,-711.88036721,0.00011993,2]
[326757734,1715320232067,-147.85049033,0.00012,2]
[326757735,1715320232079,-545.97108364,0.00012,2]
[326757736,1715320232088,-150.0,0.00012438,2]
[326757737,1715320232098,-179.55163444,0.000125,2]
[326757738,1715320232111,-344.1262584,0.000125,2]
[326757739,1715320232123,-1299.4208445,0.000125,2]
[326757749,1715320237660,-1593.74716485,0.000125,2]
[326757750,1715320237670,-150.0,0.00012893,2]
[326757751,1715320237679,-2219.88737187,0.00012894,2]
[326757752,1715320237688,-499.99,0.00012894,2]
[326757753,1715320237698,-224.99,0.00012897,2]
[326757754,1715320237707,-846.8924,0.000129,2]
[326757755,1715320237717,-1000.0,0.000129,2]
[326757756,1715320237727,-1629.8321,0.000129,2]